fUSD/lending_fUSD_20251128
["ID","MTS","AMOUNT","RATE_DAILY","PERIOD"]
[395039880,1764363040896,-500.0,0.00016,2]
[395039881,1764363040906,-500.0,0.00016,2]
[395039882,1764363040915,-500.0,0.00016,2]
[395039883,1764363040925,-500.0,0.00016,2]
[395039884,1764363040935,-500.0,0.00016,2]
[395039885,1764363040945,-500.0,0.00016,2]
[395039886,1764363040955,-500.0,0.00016,2]
[395039888,1764363040964,-500.0,0.00016,2]
[395039890,1764363040973,-500.0,0.00016,2]
[395039892,1764363040983,-500.0,0.00016,2]
[395039893,1764363040991,-500.0,0.00016,2]
[395039895,1764363041001,-500.0,0.00016,2]
[395039897,1764363041010,-500.0,0.00016,2]
[395039898,1764363041020,-500.0,0.00016,2]
[395039899,1764363041029,-500.0,0.00016,2]
[395039900,1764363041039,-500.0,0.00016,2]
[395039901,1764363041048,-500.0,0.00016,2]
[395039902,1764363041057,-500.0,0.00016,2]
[395039903,1764363041067,-500.0,0.00016,2]
[395039904,1764363041076,-500.0,0.00016,2]
[395039905,1764363041085,-500.0,0.00016,2]
[395039906,1764363041095,-500.0,0.00016,2]
[395039907,1764363041104,-500.0,0.00016,2]
[395039908,1764363041114,-500.0,0.00016,2]
[395039909,1764363041134,-500.0,0.00016,2]
[395039910,1764363041144,-500.0,0.00016,2]
[395039911,1764363041154,-500.0,0.00016,2]
[395039912,1764363041163,-500.0,0.00016,2]
[395039913,1764363041174,-500.0,0.00016,2]
[395039914,1764363041184,-500.0,0.00016,2]
[395039915,1764363041194,-500.0,0.00016,2]
[395039916,1764363041204,-500.0,0.00016,2]
[395039917,1764363041213,-500.0,0.00016,2]
[395039918,1764363041224,-500.0,0.00016,2]
[395039919,1764363041234,-500.0,0.00016,2]
[395039920,1764363041243,-500.0,0.00016,2]
[395039921,1764363041253,-500.0,0.00016,2]
[395039922,1764363041263,-500.0,0.00016,2]
[395039923,1764363041272,-500.0,0.00016,2]
[395039924,1764363041282,-500.0,0.00016,2]
[395039925,1764363041292,-500.0,0.00016,2]
[395039926,1764363041302,-500.0,0.00016,2]
[395039927,1764363041312,-500.0,0.00016,2]
[395039928,1764363041322,-500.0,0.00016,2]
[395039929,1764363041332,-500.0,0.00016,2]
[395039930,1764363041341,-500.0,0.00016,2]
[395039931,1764363041351,-500.0,0.00016,2]
[395039932,1764363041362,-610.73,0.00016,2]
[395039933,1764363041371,-150.0,0.00016016,2]
[395039934,1764363041381,-500.0,0.00016021,2]
[395039935,1764363041390,-197.58,0.00016027,2]
[395039936,1764363041400,-154.67616185,0.00016043,2]
[395039937,1764363041410,-593.34,0.0001607,2]
[395039938,1764363041419,-6682.3,0.00016135,2]
[395039939,1764363041429,-1599.12,0.00016135,2]
[395039940,1764363041439,-150.0,0.00016137,2]
[395039941,1764363041448,-150.0,0.00016137,2]
[395039942,1764363041459,-546.70822346,0.00016149,2]
[395039943,1764363041469,-267.46074303,0.00016149,2]
[395039944,1764363041483,-500.0,0.00016149,2]
[395039945,1764363041493,-250.0,0.00016149,2]
[395039946,1764363041503,-500.0,0.00016149,2]
[395039947,1764363041513,-250.0,0.00016149,2]
[395039948,1764363041522,-500.0,0.00016149,2]
[395039949,1764363041532,-250.0,0.00016149,2]
[395039950,1764363041542,-500.0,0.00016149,2]
[395039951,1764363041553,-553.64373807,0.00016149,2]
[395039952,1764363041563,-250.0,0.00016149,2]
[395039953,1764363041573,-500.0,0.00016149,2]
[395039954,1764363041583,-250.0,0.00016149,2]
[395039955,1764363041592,-500.0,0.00016149,2]
[395039956,1764363041601,-250.0,0.00016149,2]
[395039957,1764363041610,-500.0,0.00016149,2]
[395039958,1764363041620,-250.0,0.00016149,2]
[395039959,1764363041630,-500.0,0.00016149,2]
[395039960,1764363041641,-250.0,0.00016149,2]
[395039961,1764363041651,-500.0,0.00016149,2]
[395039962,1764363041660,-250.0,0.00016149,2]
[395039963,1764363041670,-500.0,0.00016149,2]
[395039964,1764363041680,-151.0,0.00016149,2]
[395039965,1764363041690,-250.0,0.00016149,2]
[395039966,1764363041700,-500.0,0.00016149,2]
[395039967,1764363041710,-250.0,0.00016149,2]
[395039968,1764363041720,-250.0,0.00016149,2]
[395039969,1764363041729,-386.87667747,0.00016149,2]
[395039970,1764363041739,-500.0,0.00016149,2]
[395039971,1764363041748,-500.0,0.00016149,2]
[395039972,1764363041758,-500.0,0.00016149,2]
[395039973,1764363041768,-500.0,0.00016149,2]
[395039974,1764363041778,-500.0,0.00016149,2]
[395039975,1764363041788,-500.0,0.00016149,2]
[395039976,1764363041797,-500.0,0.00016149,2]
[395039977,1764363041807,-500.0,0.00016149,2]
[395039978,1764363041816,-476.78534353,0.00016149,2]
[395039979,1764363041826,-500.0,0.00016149,2]
[395039980,1764363041837,-500.0,0.00016149,2]
[395039981,1764363041855,-500.0,0.00016149,2]
[395039982,1764363041865,-500.0,0.00016149,2]
[395039983,1764363041875,-500.0,0.00016149,2]
[395039984,1764363041887,-500.0,0.00016149,2]
[395039985,1764363041896,-500.0,0.00016149,2]
[395039986,1764363041906,-500.0,0.00016149,2]
[395039987,1764363041916,-500.0,0.00016149,2]
[395039988,1764363041928,-500.0,0.00016149,2]
[395039989,1764363041941,-500.0,0.00016149,2]
[395039990,1764363041951,-312.63742487,0.00016149,2]
[395039991,1764363041962,-500.0,0.00016149,2]
[395039992,1764363041971,-500.0,0.00016149,2]
[395039993,1764363041981,-500.0,0.00016149,2]
[395039994,1764363041991,-500.0,0.00016149,2]
[395039995,1764363042000,-296.53109613,0.00016149,2]
[395040007,1764363043168,-203.46890387,0.00016149,2]
[395040009,1764363043178,-300.0,0.00016149,2]
[395040010,1764363043187,-500.0,0.00016149,2]
[395040011,1764363043198,-500.0,0.00016149,2]
[395040012,1764363043208,-500.0,0.00016149,2]
[395040013,1764363043220,-56.65652659,0.00016149,2]
[395040014,1764363043231,-443.34347341,0.00016149,2]
[395040015,1764363043240,-250.0,0.00016149,2]
[395040016,1764363043250,-250.0,0.00016149,2]
[395040018,1764363043260,-250.0,0.00016149,2]
[395040019,1764363043270,-250.0,0.00016149,2]
[395040021,1764363043279,-250.0,0.00016149,2]
[395040023,1764363043288,-250.0,0.00016149,2]
[395040024,1764363043298,-250.0,0.00016149,2]
[395040025,1764363043307,-250.0,0.00016149,2]
[395040026,1764363043317,-250.0,0.00016149,2]
[395040027,1764363043326,-250.0,0.00016149,2]
[395040028,1764363043335,-250.0,0.00016149,2]
[395040029,1764363043344,-250.0,0.00016149,2]
[395040030,1764363043354,-151.0,0.00016149,2]
[395040031,1764363043363,-263.95200002,0.00016149,2]
[395040032,1764363043373,-164.90370911,0.00016151,2]
[395040033,1764363043382,-166.66,0.00016161,2]
[395040034,1764363043392,-503.52814199,0.00016173,2]
[395040035,1764363043401,-500.0,0.00016173,2]
[395040036,1764363043411,-500.0,0.00016173,2]
[395040037,1764363043421,-500.0,0.00016173,2]
[395040038,1764363043431,-502.46688489,0.00016173,2]
[395040039,1764363043440,-501.68288391,0.00016173,2]
[395040040,1764363043451,-500.0,0.00016173,2]
[395040041,1764363043461,-67.48079642,0.00016173,2]
[395040042,1764363043474,-432.51920358,0.00016173,2]
[395040043,1764363043484,-161.49240757,0.00016173,2]
[395040044,1764363043493,-500.0,0.00016173,2]
[395040045,1764363043502,-502.06775106,0.00016173,2]
[395040046,1764363043512,-500.0,0.00016173,2]
[395040047,1764363043523,-500.0,0.00016173,2]
[395040048,1764363043532,-500.0,0.00016173,2]
[395040049,1764363043542,-195.0,0.00016212,2]
[395040050,1764363043551,-154.67616185,0.00016258,2]
[395040051,1764363043561,-150.0,0.00016258,2]
[395040052,1764363043571,-250.0,0.00016294,2]
[395040053,1764363043580,-150.0,0.00016307,2]
[395040054,1764363043590,-164.90370911,0.00016338,2]
[395040055,1764363043599,-150.0,0.0001642,2]
[395040057,1764363043609,-150.0,0.0001642,2]
[395040059,1764363043619,-500.0,0.00016438,2]
[395040060,1764363043629,-155.15828136,0.00016438,2]
[395040061,1764363043638,-500.0,0.00016438,2]
[395040062,1764363043648,-500.0,0.00016438,2]
[395040063,1764363043658,-500.0,0.00016438,2]
[395040064,1764363043667,-500.0,0.00016438,2]
[395040065,1764363043678,-3303.06,0.00016438,2]
[395040066,1764363043688,-257.05910787,0.00016438,2]
[395040067,1764363043697,-154.67616185,0.00016472,2]
[395040068,1764363043708,-150.0,0.00016501,2]
[395040069,1764363043717,-164.90370911,0.00016525,2]
[395040070,1764363043727,-150.0,0.00016562,2]
[395040071,1764363043736,-1000.0,0.00016581,2]
[395040073,1764363043746,-355.0,0.00016601,2]
[395040074,1764363043756,-150.0,0.00016647,2]
[395040075,1764363043765,-154.67616185,0.00016686,2]
[395040076,1764363043775,-574.12855637,0.00016697,2]
[395040078,1764363043784,-164.90370911,0.00016713,2]
[395040079,1764363043794,-437.59709008,0.00016721,2]
[395040080,1764363043803,-1000.0,0.00016721,2]
[395040081,1764363043812,-1000.0,0.00016721,2]
[395040082,1764363043821,-1000.0,0.00016721,2]
[395040083,1764363043831,-500.0,0.00016721,2]
[395040084,1764363043842,-1000.0,0.00016721,2]
[395040085,1764363043860,-300.0,0.00016726,2]
[395040086,1764363043869,-150.0,0.00016744,2]
[395040087,1764363043878,-484.0,0.0001681,2]
[395040088,1764363043887,-203.423361,0.00016837,2]
[395040089,1764363043898,-171.399419,0.000169,2]
[395040090,1764363043907,-1000.0,0.000169,2]
[395040091,1764363043916,-164.90370911,0.000169,2]
[395040092,1764363043926,-154.67616185,0.000169,2]
[395040093,1764363043938,-184.3291987,0.000169,2]
[395040094,1764363043948,-341.81630628,0.000169,2]
[395040095,1764363043957,-224.84754656,0.000169,2]
[395040096,1764363043966,-528.9438906,0.000169,2]
[395040097,1764363043975,-364.6584371,0.000169,2]
[395040098,1764363043984,-300.0,0.00016973,2]
[395040099,1764363043994,-150.0,0.00016973,2]
[395040100,1764363044003,-203.81467987,0.00016973,2]
[395040101,1764363044012,-150.0,0.00016973,2]
[395040102,1764363044022,-150.0,0.00016973,2]
[395040103,1764363044031,-150.0,0.00016973,2]
[395040104,1764363044040,-150.0,0.00016973,2]
[395040105,1764363044050,-500.0,0.00016973,2]
[395040106,1764363044059,-150.0,0.00016973,2]
[395040107,1764363044069,-500.0,0.00016973,2]
[395040108,1764363044078,-150.0,0.00016973,2]
[395040109,1764363044088,-1000.0,0.00016981,2]
[395040110,1764363044097,-500.0,0.00016983,2]
[395040111,1764363044106,-290.126446,0.00016986,2]
[395040112,1764363044117,-150.0,0.00016986,2]
[395040113,1764363044126,-150.0,0.00016986,2]
[395040114,1764363044136,-150.0,0.00016986,2]
[395040115,1764363044145,-150.0,0.00016986,2]
[395040116,1764363044155,-150.0,0.00016986,2]
[395040117,1764363044164,-150.0,0.00016986,2]
[395040118,1764363044174,-300.290433,0.00016995,2]
[395040119,1764363044183,-168.4855053,0.00016995,2]
[395040120,1764363044192,-300.0,0.00016999,2]
[395040121,1764363044202,-300.0,0.00016999,2]
[395040122,1764363044212,-3136.0,0.00017,2]
[395040123,1764363044221,-47101.76881994,0.00017,2]
[395040124,1764363044230,-2157.45607492,0.00017,2]
[395040125,1764363044242,-306.75516906,0.00017,2]
[395040126,1764363045363,-785.0,0.00017,2]
[395040134,1764363047000,-12040.04440058,0.00017,2]
[395040135,1764363047011,-145386.78730883,0.00017,2]
[395040136,1764363047022,-3823.6956959,0.00017,2]
[395040137,1764363047041,-457.8,0.00017,2]
[395040138,1764363047052,-500.0,0.00017,2]
[395040139,1764363047076,-15487.76390701,0.00017,2]
[395040148,1764363333990,547.48,0.00013699,2]
[395040184,1764364219301,151.0,0.00014998,2]
[395040192,1764364231745,-197.82196213,0.00015162,2]
[395040193,1764364231755,-150.0,0.00015288,2]
[395040194,1764364231764,-22.17803787,0.00015288,2]
[395040195,1764364231775,-127.82196213,0.00015288,2]
[395040197,1764364231784,-150.0,0.00015288,2]
[395040198,1764364231794,-127.32456579,0.00015288,2]
[395040204,1764364231908,-22.67543421,0.00015288,2]
[395040205,1764364231918,-150.0,0.00015288,2]
[395040206,1764364231927,-150.0,0.00015288,2]
[395040207,1764364231936,-150.0,0.00015288,2]
[395040208,1764364231945,-167.12,0.00015313,2]
[395040209,1764364231955,-1200.0,0.00015324,2]
[395040210,1764364231964,-500.0,0.00015325,2]
[395040211,1764364231973,-166.62032448,0.00015372,2]
[395040212,1764364231984,-133.37967552,0.00015372,2]
[395040213,1764364231993,-300.0,0.00015372,2]
[395040214,1764364232002,-197.82196213,0.00015379,2]
[395040215,1764364232012,-195.85797524,0.0001538,2]
[395040216,1764364232021,-267.81162841,0.00015405,3]
[395040217,1764364232059,-731.18837159,0.00015405,3]
[395040218,1764364232068,-150.0,0.00015712,2]
[395040219,1764364232077,-150.0,0.00015854,2]
[395040220,1764364232087,-328.59908711,0.000159,2]
[395040221,1764364232096,-328.59908711,0.00015916,2]
[395040222,1764364232106,-500.0,0.00015973,2]
[395040223,1764364232117,-500.0,0.00015973,2]
[395040224,1764364232127,-500.0,0.00015973,2]
[395040225,1764364232137,-500.0,0.00015973,2]
[395040226,1764364232146,-164.77252977,0.00015973,2]
[395040227,1764364232155,-500.0,0.00015973,2]
[395040228,1764364232164,-500.0,0.00015973,2]
[395040229,1764364232174,-146.8499599,0.00015999,2]
[395040230,1764364232185,-348.31377012,0.00015999,2]
[395040231,1764364237360,-500.0,0.00015973,2]
[395040232,1764364237370,-500.0,0.00015973,2]
[395040233,1764364237380,-4.83626998,0.00015999,2]
[395040234,1764364237390,-500.0,0.00015999,2]
[395040235,1764364237399,-500.0,0.00015999,2]
[395040236,1764364237409,-500.0,0.00015999,2]
[395040237,1764364237418,-237.04962128,0.00015999,2]
[395040238,1764364237428,-364.53129467,0.00015999,2]
[395040241,1764364238142,-135.46870533,0.00015999,2]
[395040242,1764364238170,-365.7103309,0.00016,2]
[395040245,1764364239522,-134.2896691,0.00016,2]
[395040246,1764364239532,-500.0,0.00016,2]
[395040247,1764364239542,-500.0,0.00016,2]
[395040248,1764364239552,-500.0,0.00016,2]
[395040249,1764364239563,-95.7102309,0.00016,2]
[395040250,1764364239671,-404.2897691,0.00016,2]
[395040251,1764364239680,-500.0,0.00016,2]
[395040252,1764364239690,-500.0,0.00016,2]
[395040253,1764364239699,-185.09161182,0.00016,2]
[395040254,1764364239710,-276.53610009,0.00016,2]
[395040265,1764364242525,-38.37228809,0.00016,2]
[395040266,1764364242536,-237.63719038,0.00016,2]
[395040267,1764364242569,-262.36280962,0.00016,2]
[395040268,1764364242579,-500.0,0.00016,2]
[395040269,1764364242589,-500.0,0.00016,2]
[395040270,1764364242598,-500.0,0.00016,2]
[395040271,1764364242608,-91.32944141,0.00016,2]
[395040272,1764364242648,-408.67055859,0.00016,2]
[395040273,1764364242657,-500.0,0.00016,2]
[395040274,1764364242667,-500.0,0.00016,2]
[395040275,1764364242677,-500.0,0.00016,2]
[395040276,1764364242687,-500.0,0.00016,2]
[395040277,1764364242697,-500.0,0.00016,2]
[395040278,1764364242706,-500.0,0.00016,2]
[395040279,1764364242717,-500.0,0.00016,2]
[395040280,1764364242726,-500.0,0.00016,2]
[395040281,1764364242736,-500.0,0.00016,2]
[395040282,1764364242746,-500.0,0.00016,2]
[395040283,1764364242755,-500.0,0.00016,2]
[395040284,1764364242764,-500.0,0.00016,2]
[395040285,1764364242774,-500.0,0.00016,2]
[395040286,1764364242784,-500.0,0.00016,2]
[395040287,1764364242793,-474.74,0.00016,2]
[395040288,1764364242803,-500.0,0.00016,2]
[395040289,1764364242813,-500.0,0.00016,2]
[395040290,1764364242822,-500.0,0.00016,2]
[395040291,1764364242831,-500.0,0.00016,2]
[395040292,1764364242841,-500.0,0.00016,2]
[395040293,1764364242850,-500.0,0.00016,2]
[395040294,1764364242861,-500.0,0.00016,2]
[395040295,1764364242871,-500.0,0.00016,2]
[395040296,1764364242880,-500.0,0.00016,2]
[395040297,1764364242890,-500.0,0.00016,2]
[395040298,1764364242899,-500.0,0.00016,2]
[395040299,1764364242909,-500.0,0.00016,2]
[395040300,1764364242919,-500.0,0.00016,2]
[395040301,1764364242928,-500.0,0.00016,2]
[395040302,1764364242937,-500.0,0.00016,2]
[395040303,1764364242947,-500.0,0.00016,2]
[395040304,1764364242956,-500.0,0.00016,2]
[395040305,1764364242965,-500.0,0.00016,2]
[395040306,1764364242975,-500.0,0.00016,2]
[395040307,1764364242984,-500.0,0.00016,2]
[395040308,1764364242993,-500.0,0.00016,2]
[395040309,1764364243003,-500.0,0.00016,2]
[395040310,1764364243013,-500.0,0.00016,2]
[395040311,1764364243023,-500.0,0.00016,2]
[395040312,1764364243032,-500.0,0.00016,2]
[395040313,1764364243041,-500.0,0.00016,2]
[395040314,1764364243051,-500.0,0.00016,2]
[395040315,1764364243061,-500.0,0.00016,2]
[395040316,1764364243071,-500.0,0.00016,2]
[395040317,1764364243081,-500.0,0.00016,2]
[395040318,1764364243091,-500.0,0.00016,2]
[395040319,1764364243100,-500.0,0.00016,2]
[395040320,1764364243109,-500.0,0.00016,2]
[395040321,1764364243119,-500.0,0.00016,2]
[395040322,1764364243128,-500.0,0.00016,2]
[395040323,1764364243138,-500.0,0.00016,2]
[395040324,1764364243147,-500.0,0.00016,2]
[395040325,1764364243157,-500.0,0.00016,2]
[395040326,1764364243166,-500.0,0.00016,2]
[395040327,1764364243176,-500.0,0.00016,2]
[395040328,1764364243186,-500.0,0.00016,2]
[395040329,1764364243195,-500.0,0.00016,2]
[395040330,1764364243204,-500.0,0.00016,2]
[395040331,1764364243213,-500.0,0.00016,2]
[395040332,1764364243224,-500.0,0.00016,2]
[395040333,1764364243233,-500.0,0.00016,2]
[395040334,1764364243243,-500.0,0.00016,2]
[395040335,1764364243253,-500.0,0.00016,2]
[395040336,1764364243262,-500.0,0.00016,2]
[395040337,1764364243272,-500.0,0.00016,2]
[395040338,1764364243281,-500.0,0.00016,2]
[395040339,1764364243291,-610.73,0.00016,2]
[395040340,1764364243301,-197.57,0.00016,2]
[395040341,1764364243312,-11251.28944141,0.00016,2]
[395040365,1764364245041,-3409.7438198,0.00016,2]
[395040369,1764364245566,-695.555,0.00016,2]
[395040370,1764364245594,-674.58428147,0.00016,2]
[395040371,1764364245605,-406.59937078,0.00016,2]
[395040372,1764364245706,-48080.76132654,0.00016,2]
[395040373,1764364245716,-164.90370911,0.00016016,2]
[395040374,1764364245725,-223.07067031,0.00016115,2]
[395040375,1764364245735,-500.0,0.00016115,2]
[395040376,1764364245745,-197.70488195,0.00016115,2]
[395040377,1764364245754,-281.69577076,0.00016115,2]
[395040378,1764364245763,-9999.99,0.00016116,2]
[395040379,1764364245772,-1675.22,0.00016116,2]
[395040380,1764364245781,-150.99,0.00016116,2]
[395040381,1764364245790,-424.05,0.00016116,2]
[395040382,1764364245799,-1819.11,0.00016116,2]
[395040383,1764364245808,-499.99,0.00016116,2]
[395040384,1764364245817,-9999.99,0.00016116,2]
[395040385,1764364245827,-3795.12,0.00016116,2]
[395040386,1764364245837,-1430.03,0.00016116,2]
[395040388,1764364245846,-9999.99,0.00016116,2]
[395040390,1764364245855,-15029.79910848,0.00016116,2]
[395040391,1764364245912,-4462.45256,0.00016116,2]
[395040399,1764364860640,166.66,0.00014832,2]
[395040424,1764365431573,-166.66,0.00015144,2]
[395040425,1764365431583,-250.0,0.00015162,2]
[395040426,1764365431593,-179.28100155,0.00015181,2]
[395040427,1764365431603,-250.0,0.0001522,2]
[395040428,1764365431612,-200.0,0.00015271,2]
[395040429,1764365431622,-150.0,0.00015272,2]
[395040430,1764365431632,-150.0,0.00015288,2]
[395040431,1764365431642,-150.0,0.00015288,2]
[395040432,1764365431652,-150.0,0.00015288,2]
[395040433,1764365431662,-150.0,0.00015288,2]
[395040434,1764365431671,-150.0,0.00015288,2]
[395040435,1764365431681,-150.0,0.00015288,2]
[395040436,1764365431691,-151.084196,0.00015288,2]
[395040437,1764365431700,-150.0,0.00015288,2]
[395040438,1764365431711,-150.0,0.00015288,2]
[395040439,1764365431721,-150.0,0.00015288,2]
[395040440,1764365431731,-150.63004169,0.00015288,2]
[395040441,1764365431740,-150.0,0.00015288,2]
[395040442,1764365431750,-364.22944942,0.00015318,2]
[395040443,1764365431760,-365.70375696,0.0001533,2]
[395040444,1764365431770,-166.66,0.00015456,2]
[395040445,1764365431779,-754.45357584,0.00015477,2]
[395040450,1764365437703,-584.47791096,0.00015181,2]
[395040451,1764365437715,-30050.29239659,0.00015181,2]
[395040452,1764365437726,-9519.46653766,0.00015181,2]
[395040461,1764365439631,-1099.30755116,0.00015181,2]
[395040473,1764365442686,-2210.079186,0.00015181,2]
[395040474,1764365442697,-2018.73099543,0.00015181,2]
[395040475,1764365442747,-1184.26560707,0.00015181,2]
[395040476,1764365442758,-1396.82961508,0.00015181,2]
[395040747,1764365445759,-481.49579856,0.00015181,2]
[395040749,1764365445771,-37213.23170149,0.00015181,2]
[395040751,1764365445781,-844.66642416,0.00015477,2]
[395040753,1764365445790,-150.0,0.00015627,2]
[395040755,1764365445799,-1397.68035912,0.00015633,2]
[395040757,1764365445809,-6682.3,0.00015656,2]
[395040759,1764365445818,-150.0,0.00015661,2]
[395040761,1764365445828,-999.99,0.00015661,2]
[395040763,1764365445837,-9999.99,0.00015661,2]
[395040765,1764365445847,-3129.4121794,0.00015661,2]
[395040777,1764365445949,-6870.5778206,0.00015661,2]
[395040779,1764365445958,-2379.03,0.00015661,2]
[395040781,1764365445968,-9999.99,0.00015661,2]
[395040783,1764365445977,-500.0,0.00015673,2]
[395040785,1764365445986,-304.11662459,0.00015732,2]
[395040787,1764365445996,-568.98,0.00015733,2]
[395040789,1764365446005,-39718.1141857,0.00015733,2]
[395040793,1764365446033,-8467.25462014,0.00015733,2]
[395041479,1764365498357,157.99,7.753e-05,2]
[395041480,1764365498621,157.99,8.615e-05,2]
[395041481,1764365498848,157.99,9.476e-05,2]
[395041482,1764365499081,157.99,0.00010338,2]
[395041483,1764365500418,157.99,0.00011199,2]
[395041484,1764365500487,157.99,0.00012061,2]
[395041485,1764365500702,157.99,0.00012922,2]
[395041486,1764365500797,157.99,0.00013784,2]
[395041487,1764365500874,157.99,0.00014645,2]
[395041489,1764366247343,593.46,0.00013699,2]
[395041512,1764366631828,-832.22856812,0.00015006,2]
[395041513,1764366631840,-619.35433313,0.00015006,2]
[395041514,1764366631853,-517.52587944,0.00015006,2]
[395041515,1764366631864,-286.98,0.00015006,2]
[395041516,1764366631876,-1378.190429,0.00015006,2]
[395041517,1764366631888,-877.88000038,0.00015006,2]
[395041518,1764366631906,-1962.85146012,0.00015006,2]
[395041519,1764366631917,-1052.12548881,0.00015006,2]
[395041520,1764366631926,-3000.0,0.00015082,2]
[395041521,1764366631935,-1089.74971624,0.00015287,2]
[395041522,1764366631985,-110.25028376,0.00015287,2]
[395041523,1764366631994,-300.0,0.00015287,2]
[395041524,1764366632003,-150.0,0.00015288,2]
[395041525,1764366632012,-269.18408051,0.00015288,2]
[395041526,1764366632022,-150.0,0.00015288,2]
[395041527,1764366632031,-150.0,0.00015288,2]
[395041528,1764366632040,-151.69825372,0.00015288,2]
[395041529,1764366632050,-150.0,0.00015288,2]
[395041530,1764366632059,-150.0,0.00015288,2]
[395041531,1764366632068,-150.0,0.00015288,2]
[395041532,1764366632077,-150.0,0.00015288,2]
[395041533,1764366632087,-500.0,0.00015356,2]
[395041534,1764366632096,-743.0944438,0.00015404,3]
[395041565,1764366637735,-255.9055562,0.00015404,3]
[395041567,1764366637744,-200.0,0.00015456,2]
[395041568,1764366637754,-1000.0,0.00015485,2]
[395041570,1764366637763,-157.99,0.00015507,2]
[395041571,1764366637772,-3349.48864378,0.00015509,2]
[395041572,1764366637903,-252.52558488,0.00015509,2]
[395041583,1764366640006,-817.31434984,0.00015509,2]
[395041584,1764366640018,-562.73,0.00015509,2]
[395041585,1764366640030,-1605.04397606,0.00015509,2]
[395041586,1764366640054,-6801.75008274,0.00015509,2]
[395041587,1764366640065,-63.88683737,0.00015516,2]
[395041588,1764366640223,-664.84556528,0.00015516,2]
[395041589,1764366640235,-2050.77884625,0.00015516,2]
[395041590,1764366640247,-1341.0,0.00015516,2]
[395041591,1764366640258,-3782.7987511,0.00015516,2]
[395041592,1764366640269,-203.423361,0.0001557,2]
[395041593,1764366640278,-300.0,0.00015659,2]
[395041594,1764366640288,-267.46074303,0.00015659,2]
[395041595,1764366640302,-250.56354856,0.00015659,2]
[395041597,1764366640519,-226.22179497,0.00015659,2]
[395041598,1764366640529,-25.14820503,0.00015733,2]
[395041605,1764366642892,-174.85179497,0.00015733,2]
[395041606,1764366642901,-276.54320503,0.00015733,2]
[395041607,1764366642912,-1233.02197146,0.00015733,2]
[395041608,1764366642924,-160.78564351,0.00015733,2]
[395041609,1764366642934,-200.0,0.00015733,2]
[395041610,1764366642943,-910.36,0.00015737,2]
[395041611,1764366642952,-150.99,0.00015737,2]
[395041612,1764366642961,-820.79,0.00015737,2]
[395041613,1764366642970,-100.76105505,0.00015737,2]
[395041614,1764366643111,-98.32894495,0.00015737,2]
[395041615,1764366643121,-219.54184141,0.00015737,2]
[395041618,1764366643430,-3583.24167825,0.00015737,2]
[395041630,1764366645837,-1778.47648034,0.00015737,2]
[395041631,1764366645846,-21.52351966,0.00015737,2]